[Event "*** Biggest EVER Titled Tuesday"]
[Site "Chess.com"]
[Date "2018.04.17"]
[Round "10"]
[White "shyam"]
[Black "Abund"]
[Result "1/2-1/2"]
[WhiteElo "2580"]
[BlackElo "2488"]
[TimeControl "180+2"]
[EndTime "15:28:24 PDT"]
[Termination "Game drawn by repetition"]

1. e4 {[%clk 0:03:01.9]} 1... c6 {[%clk 0:03:00.6]} 2. d4 {[%clk 0:02:54.9]}
2... d5 {[%clk 0:03:01.7]} 3. exd5 {[%clk 0:02:56.8]} 3... cxd5 {[%clk
0:03:02.8]} 4. Bd3 {[%clk 0:02:57.9]} 4... Nc6 {[%clk 0:03:03.9]} 5. c3 {[%clk
0:02:59.3]} 5... Qc7 {[%clk 0:03:04.8]} 6. Ne2 {[%clk 0:03:00.4]} 6... Bg4
{[%clk 0:03:00.2]} 7. O-O {[%clk 0:03:00.7]} 7... e6 {[%clk 0:02:58.4]} 8. Qe1
{[%clk 0:03:01.2]} 8... Bd6 {[%clk 0:02:45.5]} 9. f3 {[%clk 0:03:01.6]} 9... Bh5
{[%clk 0:02:39.7]} 10. Qh4 {[%clk 0:03:02.3]} 10... Bg6 {[%clk 0:02:29.5]} 11.
Bxg6 {[%clk 0:03:03.4]} 11... fxg6 {[%clk 0:02:31.4]} 12. Nf4 {[%clk 0:02:59.2]}
12... Qe7 {[%clk 0:01:50.1]} 13. Nxg6 {[%clk 0:02:14.5]} 13... Qxh4 {[%clk
0:01:46.8]} 14. Nxh4 {[%clk 0:02:14.7]} 14... Nf6 {[%clk 0:01:45.9]} 15. g3
{[%clk 0:02:02.3]} 15... O-O {[%clk 0:01:40.5]} 16. f4 {[%clk 0:02:01.4]} 16...
b5 {[%clk 0:01:40.1]} 17. Nd2 {[%clk 0:02:00.1]} 17... b4 {[%clk 0:01:40.8]} 18.
Re1 {[%clk 0:02:00.5]} 18... Rfe8 {[%clk 0:01:35]} 19. Nhf3 {[%clk 0:01:59.5]}
19... Rac8 {[%clk 0:01:34.1]} 20. c4 {[%clk 0:01:55.8]} 20... dxc4 {[%clk
0:01:21.9]} 21. Nxc4 {[%clk 0:01:57.7]} 21... Nxd4 {[%clk 0:01:18.4]} 22. Nxd4
{[%clk 0:01:37.9]} 22... Rxc4 {[%clk 0:01:18.6]} 23. Be3 {[%clk 0:01:31.3]}
23... Ng4 {[%clk 0:01:10.1]} 24. Nb3 {[%clk 0:01:25.5]} 24... Rc2 {[%clk
0:00:58.2]} 25. Rad1 {[%clk 0:01:25.4]} 25... Bc7 {[%clk 0:00:42.6]} 26. Bd4
{[%clk 0:01:18.8]} 26... Nxh2 {[%clk 0:00:40.2]} 27. Rd3 {[%clk 0:01:19]} 27...
Rd8 {[%clk 0:00:30.6]} 28. Rxe6 {[%clk 0:01:13.9]} 28... Bb6 {[%clk 0:00:31.7]}
29. Ree3 {[%clk 0:00:52.3]} 29... Rxb2 {[%clk 0:00:29.1]} 30. Bxb6 {[%clk
0:00:48.6]} 30... Rxd3 {[%clk 0:00:27.3]} 31. Rxd3 {[%clk 0:00:50.5]} 31... axb6
{[%clk 0:00:28.3]} 32. Rd6 {[%clk 0:00:45.3]} 32... Nf3+ {[%clk 0:00:27]} 33.
Kf1 {[%clk 0:00:45.9]} 33... Rxa2 {[%clk 0:00:26.5]} 34. Rxb6 {[%clk 0:00:46.9]}
34... Rb2 {[%clk 0:00:27.4]} 35. Nc5 {[%clk 0:00:41.7]} 35... b3 {[%clk
0:00:27.3]} 36. Rb7 {[%clk 0:00:34.8]} 36... Nd4 {[%clk 0:00:25]} 37. g4 {[%clk
0:00:32]} 37... h6 {[%clk 0:00:19.3]} 38. f5 {[%clk 0:00:31.9]} 38... Nf3 {[%clk
0:00:14.1]} 39. Ne6 {[%clk 0:00:29.3]} 39... Rb1+ {[%clk 0:00:13.1]} 40. Kf2
{[%clk 0:00:26.9]} 40... b2 {[%clk 0:00:13.8]} 41. Kxf3 {[%clk 0:00:10.7]} 41...
Rf1+ {[%clk 0:00:13.9]} 42. Kg3 {[%clk 0:00:10.2]} 42... b1=Q {[%clk 0:00:15.8]}
43. Rxb1 {[%clk 0:00:11.2]} 43... Rxb1 {[%clk 0:00:17.4]} 44. Kh4 {[%clk
0:00:12.2]} 44... Rh1+ {[%clk 0:00:15.6]} 45. Kg3 {[%clk 0:00:13.3]} 45... Kf7
{[%clk 0:00:16.7]} 46. Nf4 {[%clk 0:00:13.1]} 46... Rg1+ {[%clk 0:00:16.1]} 47.
Kf3 {[%clk 0:00:13.8]} 47... Rf1+ {[%clk 0:00:16.6]} 48. Kg3 {[%clk 0:00:14.6]}
48... Ra1 {[%clk 0:00:17.5]} 49. Nh5 {[%clk 0:00:15.7]} 49... Ra3+ {[%clk
0:00:17.8]} 50. Kh4 {[%clk 0:00:16.5]} 50... Ra4 {[%clk 0:00:19.4]} 51. Kg3
{[%clk 0:00:16.8]} 51... Rb4 {[%clk 0:00:19.5]} 52. Nf4 {[%clk 0:00:17.3]} 52...
Rd4 {[%clk 0:00:20.2]} 53. Nh5 {[%clk 0:00:18]} 53... Ra4 {[%clk 0:00:21.3]} 54.
Nf4 {[%clk 0:00:19.1]} 54... Kf6 {[%clk 0:00:21.9]} 55. Kf3 {[%clk 0:00:16.3]}
55... Ra3+ {[%clk 0:00:20.5]} 56. Ke4 {[%clk 0:00:16.2]} 56... Ra4+ {[%clk
0:00:17.5]} 57. Kf3 {[%clk 0:00:17.1]} 57... Ra7 {[%clk 0:00:15.7]} 58. Kg3
{[%clk 0:00:16.2]} 58... Ke5 {[%clk 0:00:16.1]} 59. Ne6 {[%clk 0:00:16]} 59...
Ke4 {[%clk 0:00:14]} 60. Kh4 {[%clk 0:00:16.5]} 60... Ke5 {[%clk 0:00:09.5]} 61.
Kh5 {[%clk 0:00:17.4]} 61... Re7 {[%clk 0:00:10.4]} 62. Nf8 {[%clk 0:00:16.9]}
62... Kf6 {[%clk 0:00:09.2]} 63. Ne6 {[%clk 0:00:15.4]} 63... Ra7 {[%clk
0:00:08.5]} 64. Nf4 {[%clk 0:00:15.3]} 64... Ra1 {[%clk 0:00:08.4]} 65. Kh4
{[%clk 0:00:16.4]} 65... Rh1+ {[%clk 0:00:09.2]} 66. Kg3 {[%clk 0:00:17.7]}
66... Ra1 {[%clk 0:00:10.6]} 67. Nh5+ {[%clk 0:00:18.4]} 67... Kf7 {[%clk
0:00:11.7]} 68. Kf4 {[%clk 0:00:19.5]} 68... Ra4+ {[%clk 0:00:13.4]} 69. Kg3
{[%clk 0:00:20.9]} 69... Rb4 {[%clk 0:00:13.9]} 70. Kh3 {[%clk 0:00:21.9]} 70...
Rb8 {[%clk 0:00:14.5]} 71. Kg3 {[%clk 0:00:21]} 71... Rc8 {[%clk 0:00:15.9]} 72.
Kf4 {[%clk 0:00:22.3]} 72... Ra8 {[%clk 0:00:17.2]} 73. Kf3 {[%clk 0:00:23.2]}
73... Ra7 {[%clk 0:00:18.5]} 74. Kf4 {[%clk 0:00:24.5]} 74... Ra6 {[%clk
0:00:19.9]} 75. Kf3 {[%clk 0:00:25.8]} 75... Ra4 {[%clk 0:00:20.2]} 76. Kg3
{[%clk 0:00:26.8]} 76... Rb4 {[%clk 0:00:19.5]} 77. Kf3 {[%clk 0:00:28.1]} 77...
Ra4 {[%clk 0:00:18.8]} 78. Kg3 {[%clk 0:00:29.4]} 78... g6 {[%clk 0:00:20.5]}
79. fxg6+ {[%clk 0:00:29.3]} 79... Kxg6 {[%clk 0:00:22.4]} 80. Nf4+ {[%clk
0:00:31]} 80... Kf6 {[%clk 0:00:21.1]} 81. Nh3 {[%clk 0:00:31.5]} 81... Kg6
{[%clk 0:00:17.8]} 82. Nf4+ {[%clk 0:00:30.2]} 82... Kg5 {[%clk 0:00:19.1]} 83.
Nh3+ {[%clk 0:00:31.5]} 83... Kf6 {[%clk 0:00:20.3]} 84. Kh4 {[%clk 0:00:32.8]}
84... Kg6 {[%clk 0:00:16]} 85. Kg3 {[%clk 0:00:32.9]} 85... Ra5 {[%clk 0:00:17]}
86. Nf4+ {[%clk 0:00:33.9]} 86... Kf6 {[%clk 0:00:17.6]} 87. Kh4 {[%clk
0:00:34.1]} 87... Ra4 {[%clk 0:00:15.9]} 88. Nh5+ {[%clk 0:00:30.8]} 88... Ke5
{[%clk 0:00:12.7]} 89. Ng3 {[%clk 0:00:32.7]} 89... Kf4 {[%clk 0:00:11.3]} 90.
Nf5 {[%clk 0:00:31.6]} 90... Ra1 {[%clk 0:00:06.9]} 91. Kh5 {[%clk 0:00:32.4]}
91... Rh1+ {[%clk 0:00:07.3]} 92. Kg6 {[%clk 0:00:33.8]} 92... Kxg4 {[%clk
0:00:04.9]} 93. Nxh6+ {[%clk 0:00:34.5]} 93... Kf4 {[%clk 0:00:06.3]} 94. Nf5
{[%clk 0:00:32.1]} 94... Ra1 {[%clk 0:00:06.4]} 95. Nh6 {[%clk 0:00:33]} 95...
Ra6+ {[%clk 0:00:06.9]} 96. Kh5 {[%clk 0:00:34.4]} 96... Rb6 {[%clk 0:00:06.5]}
97. Ng8 {[%clk 0:00:34.4]} 97... Kf5 {[%clk 0:00:05.8]} 98. Nh6+ {[%clk
0:00:35.4]} 98... Kf4 {[%clk 0:00:06.1]} 99. Ng8 {[%clk 0:00:36.4]} 99... Ra6
{[%clk 0:00:06.8]} 100. Nh6 {[%clk 0:00:37.6]} 100... Rb6 {[%clk 0:00:04.5]}
101. Ng8 {[%clk 0:00:38.2]} 101... Ke5 {[%clk 0:00:05.3]} 102. Kg5 {[%clk
0:00:37]} 102... Rb1 {[%clk 0:00:07.2]} 103. Nh6 {[%clk 0:00:37.8]} 103... Rg1+
{[%clk 0:00:07]} 104. Ng4+ {[%clk 0:00:39]} 104... Ke4 {[%clk 0:00:08.9]} 105.
Kh5 {[%clk 0:00:39]} 105... Kf5 {[%clk 0:00:08.5]} 106. Nh6+ {[%clk 0:00:40.3]}
106... Kf4 {[%clk 0:00:09.2]} 107. Nf7 {[%clk 0:00:39.8]} 107... Rg7 {[%clk
0:00:09.9]} 108. Nh6 {[%clk 0:00:40.7]} 108... Rg5+ {[%clk 0:00:07.2]} 109. Kh4
{[%clk 0:00:41.9]} 109... Rg6 {[%clk 0:00:07.4]} 110. Kh5 {[%clk 0:00:43]}
110... Rg7 {[%clk 0:00:07.8]} 111. Kh4 {[%clk 0:00:41.2]} 111... Rg6 {[%clk
0:00:08.5]} 112. Kh5 {[%clk 0:00:42.3]} 112... Rg1 {[%clk 0:00:09.6]} 113. Nf7
{[%clk 0:00:41.7]} 113... Kf5 {[%clk 0:00:10.6]} 114. Nh6+ {[%clk 0:00:42.6]}
114... Kf6 {[%clk 0:00:12]} 115. Ng4+ {[%clk 0:00:43.1]} 115... Kf5 {[%clk
0:00:12]} 116. Nh6+ {[%clk 0:00:44.3]} 116... Kf4 {[%clk 0:00:13.9]} 1/2-1/2